fUSD/lending_fUSD_20241030
["ID","MTS","AMOUNT","RATE_DAILY","PERIOD"]
[341024592,1730279435127,-250.0,0.00033832,120]
[341024593,1730279435137,-22364.15,0.00033837,2]
[341024594,1730279435146,-991.27,0.00033943,2]
[341024595,1730279435155,-488.0,0.00034197,2]
[341024596,1730279435164,-177.04,0.00034231,120]
[341024597,1730279435174,-235.836,0.00034265,38]
[341024598,1730279435183,-175.17,0.00034265,120]
[341024599,1730279435192,-1084.20196636,0.000348,2]
[341024600,1730279435205,-992.70614788,0.00034899,15]
[341024601,1730279435215,-392.12591013,0.00034899,2]
[341024602,1730279435242,-4589.23250568,0.000349,2]
[341024603,1730279435272,-549.93560596,0.000349,2]
[341024604,1730279435304,-549.93560596,0.000349,2]
[341024606,1730279435328,-992.70614788,0.00034901,15]
[341024608,1730279435351,-992.70614788,0.00034902,15]
[341024611,1730279435381,-992.70614788,0.00034904,15]
[341024614,1730279435416,-992.70614788,0.00034906,15]
[341024617,1730279435450,-992.70614788,0.00034907,15]
[341024620,1730279435467,-992.70614788,0.00034909,15]
[341024623,1730279435476,-992.70614788,0.00034911,15]
[341024626,1730279435485,-992.70614788,0.00034912,15]
[341024629,1730279435494,-568.58183198,0.00034914,2]
[341024631,1730279435503,-472.40906619,0.00034914,15]
[341024635,1730279435515,-520.29708169,0.00034914,15]
[341024637,1730279435523,-598.03891529,0.00034914,2]
[341024638,1730279435532,-392.12591013,0.00034914,2]
[341024639,1730279435541,-56.10563989,0.00034973,2]
[341024640,1730279435552,-443.89436011,0.00034973,2]
[341024641,1730279435561,-13254.4910038,0.00034998,15]
[341024642,1730279435572,-684.71908266,0.00034998,15]
[341024643,1730279435583,-387.02289021,0.00034998,15]
[341024644,1730279435594,-270.26587227,0.00034998,15]
[341024645,1730279435606,-553.41206283,0.00034998,15]
[341024648,1730279437746,-467.05,0.00034988,10]
[341024649,1730279437755,-532.20363289,0.00034998,15]
[341024652,1730279439690,-21999.11398724,0.00034998,15]
[341024653,1730279439700,-500.0,0.00034998,7]
[341024654,1730279439709,-496.22081513,0.00034998,7]
[341024655,1730279439718,-500.0,0.00034998,5]
[341024656,1730279439727,-500.0,0.00034998,5]
[341024657,1730279439738,-500.0,0.00034998,5]
[341024658,1730279439748,-561.4,0.00034998,5]
[341024659,1730279439757,-2207.98,0.00034998,5]
[341024660,1730279439768,-500.0,0.00034998,5]
[341024661,1730279439777,-500.0,0.00034998,5]
[341024662,1730279439787,-1017.01,0.00034998,5]
[341024663,1730279439797,-721.88,0.00034998,5]
[341024664,1730279439807,-1792.28,0.00034998,5]
[341024665,1730279439816,-539.63132191,0.00034998,5]
[341024666,1730279439825,-500.0,0.00034998,5]
[341024667,1730279439834,-921.12,0.00034998,5]
[341024668,1730279439844,-633.54,0.00034998,5]
[341024669,1730279439854,-500.0,0.00034998,5]
[341024670,1730279439863,-2489.73,0.00034998,5]
[341024671,1730279439872,-1685.81,0.00034998,5]
[341024672,1730279439882,-913.24,0.00034998,5]
[341024673,1730279439891,-797.45,0.00034998,5]
[341024674,1730279439901,-500.0,0.00034998,5]
[341024675,1730279439910,-535.74024501,0.00034998,5]
[341024676,1730279439920,-859.59,0.00034998,5]
[341024677,1730279439929,-551.58,0.00034998,5]
[341024678,1730279439940,-926.79,0.00034998,5]
[341024679,1730279439951,-5381.44,0.00034998,5]
[341024680,1730279439961,-1747.56,0.00034998,5]
[341024681,1730279439970,-8416.51,0.00034998,5]
[341024682,1730279439980,-500.0,0.00034998,2]
[341024683,1730279439989,-500.0,0.00034998,5]
[341024684,1730279439999,-500.0,0.00034998,2]
[341024685,1730279440009,-10142.28,0.00034998,5]
[341024686,1730279440019,-1250.0,0.00034998,5]
[341024687,1730279440030,-500.0,0.00034998,5]
[341024688,1730279440040,-1427.96,0.00034998,5]
[341024689,1730279440050,-637.86754362,0.00034999,2]
[341024690,1730279440059,-510.17,0.00034999,5]
[341024691,1730279440069,-500.0,0.00034999,5]
[341024692,1730279440079,-500.0,0.00034999,5]
[341024693,1730279440089,-530.14707402,0.00034999,5]
[341024694,1730279440098,-500.0,0.00034999,5]
[341024695,1730279440108,-500.0,0.00034999,5]
[341024696,1730279440117,-1184.01,0.00034999,5]
[341024697,1730279440127,-500.0,0.00034999,5]
[341024698,1730279440136,-644.09003821,0.00034999,5]
[341024699,1730279440146,-500.0,0.00034999,5]
[341024700,1730279440157,-1304.0,0.00034999,5]
[341024701,1730279440166,-1104.82,0.00034999,5]
[341024702,1730279440176,-500.0,0.00034999,5]
[341024703,1730279440186,-963.03,0.00034999,5]
[341024704,1730279440196,-500.0,0.00034999,5]
[341024705,1730279440206,-500.0,0.00034999,5]
[341024706,1730279440215,-500.0,0.00034999,5]
[341024707,1730279440225,-500.0,0.00034999,5]
[341024708,1730279440235,-500.0,0.00034999,5]
[341024709,1730279440244,-500.0,0.00034999,5]
[341024710,1730279440254,-500.0,0.00034999,5]
[341024711,1730279440263,-500.0,0.00034999,5]
[341024712,1730279440272,-500.0,0.00034999,5]
[341024713,1730279440282,-680.66,0.00034999,5]
[341024714,1730279440292,-500.0,0.00034999,5]
[341024715,1730279440301,-500.0,0.00034999,5]
[341024716,1730279440311,-500.0,0.00034999,5]
[341024717,1730279440321,-500.0,0.00034999,5]
[341024718,1730279440330,-724.2,0.00034999,5]
[341024719,1730279440340,-500.0,0.00034999,5]
[341024720,1730279440350,-500.0,0.00034999,5]
[341024721,1730279440359,-2409.19,0.00034999,5]
[341024722,1730279440369,-500.0,0.00034999,5]
[341024723,1730279440379,-500.0,0.00034999,5]
[341024724,1730279440389,-500.0,0.00034999,5]
[341024725,1730279440398,-512.89027123,0.00034999,5]
[341024726,1730279440407,-500.0,0.00034999,5]
[341024727,1730279440417,-500.0,0.00034999,5]
[341024728,1730279440426,-500.0,0.00034999,5]
[341024729,1730279440436,-500.0,0.00034999,5]
[341024730,1730279440445,-500.0,0.00034999,5]
[341024731,1730279440454,-500.0,0.00034999,5]
[341024732,1730279440464,-500.0,0.00034999,5]
[341024733,1730279440473,-500.0,0.00034999,5]
[341024734,1730279440483,-500.0,0.00034999,5]
[341024735,1730279440493,-500.0,0.00034999,5]
[341024736,1730279440502,-500.0,0.00034999,5]
[341024737,1730279440512,-500.0,0.00034999,5]
[341024738,1730279440523,-500.0,0.00034999,5]
[341024739,1730279440532,-500.0,0.00034999,5]
[341024740,1730279440542,-500.0,0.00034999,5]
[341024741,1730279440552,-500.0,0.00034999,5]
[341024742,1730279440562,-516.34106751,0.00034999,5]
[341024743,1730279440573,-1447.96,0.00034999,5]
[341024744,1730279440582,-500.0,0.00034999,5]
[341024745,1730279440592,-500.0,0.00034999,5]
[341024746,1730279440601,-500.0,0.00034999,5]
[341024747,1730279440611,-500.0,0.00034999,5]
[341024748,1730279440623,-548.36162295,0.00034999,5]
[341024749,1730279440633,-402.8135253,0.00034999,5]
[341024750,1730279440642,-500.0,0.00034999,5]
[341024751,1730279440651,-500.0,0.00034999,5]
[341024752,1730279440661,-500.0,0.00034999,5]
[341024753,1730279440671,-500.0,0.00034999,5]
[341024754,1730279440680,-500.0,0.00034999,5]
[341024755,1730279440690,-216.42365882,0.00034999,5]
[341024756,1730279440701,-500.0,0.00034999,5]
[341024757,1730279440710,-503.33223348,0.00034999,5]
[341024758,1730279440719,-500.0,0.00034999,5]
[341024759,1730279440729,-500.0,0.00034999,5]
[341024760,1730279440738,-500.0,0.00034999,5]
[341024761,1730279440747,-500.0,0.00034999,5]
[341024762,1730279440756,-640.7,0.00034999,5]
[341024763,1730279440765,-518.55302486,0.00034999,5]
[341024764,1730279440775,-500.0,0.00034999,5]
[341024765,1730279440784,-150.0,0.00034999,5]
[341024766,1730279440794,-500.0,0.00034999,5]
[341024767,1730279440804,-500.0,0.00034999,5]
[341024768,1730279440813,-500.0,0.00034999,5]
[341024769,1730279440822,-511.37022493,0.00034999,5]
[341024770,1730279440831,-1189.9,0.00034999,5]
[341024771,1730279440841,-1189.9,0.00034999,5]
[341024772,1730279440850,-1189.9,0.00034999,5]
[341024773,1730279440860,-1189.9,0.00034999,5]
[341024774,1730279440869,-1189.9,0.00034999,5]
[341024775,1730279440878,-507.94584652,0.00034999,5]
[341024776,1730279440887,-1189.9,0.00034999,5]
[341024777,1730279440897,-500.0,0.00034999,5]
[341024778,1730279440906,-1189.9,0.00034999,5]
[341024779,1730279440915,-1189.9,0.00034999,5]
[341024780,1730279440925,-1189.9,0.00034999,5]
[341024781,1730279440935,-1189.9,0.00034999,5]
[341024782,1730279440944,-1189.9,0.00034999,5]
[341024783,1730279440953,-1189.9,0.00034999,5]
[341024784,1730279440964,-500.0,0.00034999,5]
[341024785,1730279440973,-1189.9,0.00034999,5]
[341024786,1730279440982,-1189.9,0.00034999,5]
[341024787,1730279440992,-500.0,0.00034999,5]
[341024788,1730279441001,-522.7148081,0.00034999,5]
[341024789,1730279441010,-1189.9,0.00034999,5]
[341024790,1730279441020,-500.0,0.00034999,5]
[341024791,1730279441029,-1189.9,0.00034999,5]
[341024792,1730279441038,-1189.9,0.00034999,5]
[341024793,1730279441047,-842.12956208,0.00034999,5]
[341024796,1730279442882,-500.0,0.00034998,5]
[341024797,1730279442892,-646.53269468,0.00034998,2]
[341024798,1730279445726,-532.57,0.00034998,5]
[341024799,1730279445736,-30.42304504,0.00034998,2]
[341024803,1730279849645,158.36,0.00015342,2]
[341024804,1730279918480,150.0,0.00021,2]
[341024807,1730280205149,-854.0,0.000285,2]
[341024813,1730280268405,-6224.00879531,0.000298,2]
[341024817,1730280307783,132954.99150858,0.00016,2]
[341024818,1730280307812,50000.0,0.00016,2]
[341024819,1730280307838,50000.0,0.00016,2]
[341024820,1730280307865,50000.0,0.00016,2]
[341024821,1730280307890,50000.0,0.00016,2]
[341024822,1730280307915,50000.0,0.00016,2]
[341024823,1730280307940,50000.0,0.00016,2]
[341024824,1730280307963,58597.84276184,0.00016,2]
[341024825,1730280327166,-150.0,0.000299,2]
[341024828,1730280404636,151.7,0.00015342,2]
[341024830,1730280418121,-411.3921598,0.0002495,2]
[341024831,1730280418141,-778.22654307,0.00025,2]
[341024832,1730280448093,-1469.84460955,0.000225,2]
[341024833,1730280448114,-1182.52873022,0.00025,2]
[341024842,1730280541252,300.0,0.00019725,2]
[341024850,1730280563107,-301.0,0.00021484,2]
[341024851,1730280563127,-5327.60683494,0.000232,2]
[341024852,1730280563148,-302.33326351,0.00024,7]
[341024853,1730280563168,-4287.89808193,0.00025,2]
[341024854,1730280563188,-151.7,0.00025479,2]
[341024855,1730280563208,-2626.31045111,0.00027,7]
[341024856,1730280565501,5212.84474353,0.00025479,2]
[341025037,1730280639929,-502.38843279,0.00029,3]
[341025039,1730280639938,-71.00558137,0.000299,2]
[341025041,1730280639948,-286.96925,0.0003,2]
[341025043,1730280639959,-286.96925,0.0003,2]
[341025045,1730280639969,-300.0,0.0003,2]
[341025047,1730280639978,-180.156,0.0003,2]
[341025049,1730280639987,-180.156,0.0003,2]
[341025051,1730280639997,-1449.46048584,0.0003,2]
[341025350,1730280643009,-132.17985582,0.0003,2]
[341025579,1730280645935,-14744.51968752,0.0003,2]
[341025580,1730280645946,-911.89,0.0003169,2]
[341025581,1730280645957,-216.87,0.0003196,2]
[341025582,1730280645966,-23900.0,0.00032543,2]
[341025583,1730280645975,-2168.68,0.00033129,2]
[341025584,1730280645985,-1343.53,0.00033186,2]
[341025585,1730280645995,-150.78,0.00033199,2]
[341025586,1730280646005,-190.45,0.00033226,120]
[341025587,1730280646015,-179.62,0.0003329,2]
[341025588,1730280646025,-168.98,0.00033558,2]
[341025589,1730280646035,-250.0,0.00033583,120]
[341025590,1730280646044,-175.17,0.00033599,120]
[341025591,1730280646054,-150.0,0.00033642,7]
[341025592,1730280646064,-1896.53,0.00033728,2]
[341025593,1730280646075,-409.6,0.00033757,2]
[341025594,1730280646088,-330.88,0.00033806,2]
[341025595,1730280646098,-911.89,0.00033953,2]
[341025596,1730280646108,-590.4,0.00034205,2]
[341025597,1730280646117,-169.93,0.00034493,2]
[341025598,1730280646127,-168.54093004,0.00034798,15]
[341025599,1730280646136,-262.718,0.00034798,2]
[341025600,1730280646145,-792.9418,0.00034798,2]
[341025601,1730280646155,-3821.1648,0.00034798,2]
[341025602,1730280646165,-1199.7552,0.00034798,2]
[341025603,1730280646176,-2500.0,0.00034798,2]
[341025604,1730280646185,-795.8648,0.00034798,2]
[341025605,1730280646195,-168.54093002,0.00034837,15]
[341025606,1730280646315,-167.31,0.00034844,2]
[341025607,1730280646329,-150.78,0.00034858,2]
[341025608,1730280646338,-168.54093002,0.00034875,15]
[341025609,1730280646348,-5006.02550466,0.00034897,2]
[341025610,1730280646360,-9672.08656798,0.00034897,2]
[341025611,1730280646371,-45241.69022736,0.00034897,2]
[341025612,1730280646380,-196.7851,0.00034897,2]
[341025613,1730280646390,-3502.8747,0.00034897,2]
[341025614,1730280646399,-500.0,0.00034897,5]
[341025615,1730280646409,-538.01,0.00034897,5]
[341025616,1730280646419,-500.0,0.00034897,5]
[341025617,1730280646429,-500.0,0.00034897,5]
[341025618,1730280646438,-974.64,0.00034897,5]
[341025619,1730280646448,-500.0,0.00034897,5]
[341025620,1730280646458,-2115.98,0.00034897,5]
[341025621,1730280646467,-691.81,0.00034897,5]
[341025622,1730280646476,-1717.6,0.00034897,5]
[341025623,1730280646486,-500.0,0.00034897,5]
[341025624,1730280646495,-1810.12697264,0.00034897,5]
[341025625,1730280646506,-195.18302736,0.00034897,5]
[341025626,1730280646516,-607.14,0.00034897,5]
[341025627,1730280646525,-2385.99,0.00034897,5]
[341025628,1730280646534,-875.19,0.00034897,5]
[341025629,1730280646544,-500.0,0.00034897,5]
[341025630,1730280646553,-764.22,0.00034897,5]
[341025631,1730280646562,-882.74,0.00034897,5]
[341025632,1730280646572,-528.6,0.00034897,5]
[341025633,1730280646581,-500.0,0.00034897,5]
[341025634,1730280646590,-5130.96988016,0.00034897,5]
[341025635,1730280646609,-404.48230813,0.00034897,5]
[341025638,1730280901966,300.0,0.00019725,2]
[341025639,1730280921830,158.1,0.00015342,2]
[341025642,1730280975664,550.0,0.00015,2]
[341025643,1730280976764,600.0,0.00017,2]
[341025646,1730281629140,-284.0,0.000283,2]
[341025647,1730281629161,-245.46175,0.0003,2]
[341025648,1730281629182,-70.23933984,0.0003,2]
[341025649,1730281754127,-175.22241016,0.0003,2]
[341025650,1730281754148,-794.07871147,0.00031778,2]
[341025656,1730281831844,-26.62128853,0.00031778,2]
[341025657,1730281831853,-216.87,0.00032038,2]
[341025658,1730281831863,-216.88,0.00032261,2]
[341025659,1730281831872,-169.81595844,0.00032877,2]
[341025660,1730281831882,-1688.22,0.00033571,2]
[341025661,1730281831891,-206.63275303,0.00033571,120]
[341025662,1730281831905,-43.36724697,0.00033571,120]
[341025663,1730281831914,-11531.99878001,0.00033668,2]
[341025664,1730281831923,-4495.93,0.00033668,2]
[341025665,1730281831932,-150.0,0.00033748,7]
[341025666,1730281831941,-5629.88,0.00033748,2]
[341025667,1730281831951,-1000.0,0.00033787,2]
[341025668,1730281831960,-820.7,0.00034042,2]
[341025669,1730281831970,-168.95,0.00034578,2]
[341025670,1730281831979,-14108.2612,0.00034697,2]
[341025671,1730281831988,-1000.0,0.00034697,2]
[341025672,1730281831998,-1484.9994,0.00034697,2]
[341025673,1730281832007,-150.0,0.00034728,2]
[341025674,1730281832016,-150.0,0.00034733,2]
[341025675,1730281832026,-150.0,0.00034734,2]
[341025676,1730281832036,-150.0,0.00034742,2]
[341025677,1730281832046,-150.0,0.0003476,2]
[341025678,1730281832056,-150.0,0.00034761,2]
[341025679,1730281832066,-150.0,0.00034771,2]
[341025680,1730281832075,-150.0,0.00034775,2]
[341025681,1730281832084,-150.0,0.00034776,2]
[341025682,1730281832094,-150.0,0.00034776,2]
[341025683,1730281832104,-150.0,0.00034779,2]
[341025684,1730281832114,-150.0,0.00034785,2]
[341025685,1730281832123,-150.0,0.00034786,2]
[341025686,1730281832133,-645.91,0.00034787,3]
[341025687,1730281832142,-150.0,0.00034792,2]
[341025688,1730281832151,-150.0,0.00034794,2]
[341025689,1730281832161,-1731.134,0.00034796,2]
[341025690,1730281832170,-5697.96937302,0.00034796,2]
[341025691,1730281832190,-465.78806071,0.00034796,2]
[341025692,1730281832201,-19051.32846627,0.00034796,2]
[341025693,1730281832210,-7301.51746322,0.00034796,5]
[341025694,1730281832221,-3259.99102821,0.00034796,5]
[341025695,1730281832230,-1119.37,0.00034796,5]
[341025696,1730281832240,-500.0,0.00034796,5]
[341025697,1730281832250,-1674.75,0.00034796,5]
[341025698,1730281832259,-698.5,0.00034796,5]
[341025700,1730281832270,-500.0,0.00034797,2]
[341025702,1730281832279,-225.5134,0.00034797,2]
[341025704,1730281832289,-500.0,0.00034797,2]
[341025706,1730281832298,-215.7594,0.00034797,2]
[341025708,1730281832308,-245000.0,0.00034797,2]
[341025710,1730281832317,-100000.0,0.00034797,2]
[341025712,1730281832326,-150.0,0.00034797,2]
[341025714,1730281832335,-150.0,0.00034797,2]
[341025716,1730281832345,-307.7765,0.00034798,2]
[341025718,1730281832354,-2867.23437715,0.000348,2]
[341025719,1730281832363,-150.0,0.00034806,2]
[341025720,1730281832372,-150.0,0.00034813,2]
[341025721,1730281832381,-150.0,0.00034813,2]
[341025722,1730281832391,-150.0,0.00034814,2]
[341025723,1730281832399,-150.0,0.00034821,2]
[341025724,1730281832409,-150.0,0.00034821,2]
[341025725,1730281832418,-150.0,0.00034822,2]
[341025726,1730281832428,-500.0,0.00034825,2]
[341025727,1730281832437,-500.0,0.00034825,2]
[341025728,1730281832447,-500.0,0.00034825,2]
[341025729,1730281832456,-500.0,0.00034825,2]
[341025730,1730281832465,-500.0,0.00034825,2]
[341025731,1730281832476,-414.2872,0.00034825,2]
[341025732,1730281832485,-1000.0,0.00034825,2]
[341025733,1730281832495,-1000.0,0.00034825,2]
[341025734,1730281832504,-1000.0,0.00034825,2]
[341025735,1730281832513,-1000.0,0.00034825,2]
[341025736,1730281832524,-1000.0,0.00034825,2]
[341025737,1730281832533,-1000.0,0.00034825,2]
[341025738,1730281832543,-1000.0,0.00034825,2]
[341025739,1730281832553,-1000.0,0.00034825,2]
[341025740,1730281832562,-1000.0,0.00034825,2]
[341025741,1730281832571,-1000.0,0.00034825,2]
[341025742,1730281832581,-1000.0,0.00034825,2]
[341025743,1730281832590,-1000.0,0.00034825,2]
[341025744,1730281832599,-1000.0,0.00034825,2]
[341025745,1730281832609,-1000.0,0.00034825,2]
[341025746,1730281832623,-1000.0,0.00034825,2]
[341025747,1730281832632,-1000.0,0.00034825,2]
[341025748,1730281832642,-1000.0,0.00034825,2]
[341025749,1730281832652,-1000.0,0.00034825,2]
[341025750,1730281832662,-1000.0,0.00034825,2]
[341025751,1730281832672,-1000.0,0.00034825,2]
[341025752,1730281832681,-1000.0,0.00034825,2]
[341025753,1730281832692,-1000.0,0.00034825,2]
[341025754,1730281832702,-1000.0,0.00034825,2]
[341025755,1730281832711,-1000.0,0.00034825,2]
[341025756,1730281832721,-1000.0,0.00034825,2]
[341025757,1730281832731,-1000.0,0.00034825,2]
[341025758,1730281832860,-1000.0,0.00034825,2]
[341025759,1730281832870,-1000.0,0.00034825,2]
[341025760,1730281832879,-1000.0,0.00034825,2]
[341025761,1730281832889,-1000.0,0.00034825,2]
[341025762,1730281832898,-667.035,0.00034825,2]
[341025763,1730281832908,-150.0,0.00034835,2]
[341025764,1730281832917,-150.0,0.00034839,2]
[341025765,1730281832927,-188.669,0.00034844,40]
[341025766,1730281832937,-150.0,0.00034844,2]
[341025767,1730281832946,-150.0,0.00034845,2]
[341025768,1730281832956,-150.0,0.00034853,2]
[341025769,1730281832965,-4671.89116415,0.00034853,2]
[341025770,1730281832992,-893.6602403,0.00034853,2]
[341025771,1730281833002,-724.07073579,0.00034853,2]
[341025772,1730281833013,-535.00166787,0.00034853,2]
[341025773,1730281833026,-999.915646,0.00034853,2]
[341025774,1730281833037,-684.47513555,0.00034853,2]
[341025775,1730281833046,-150.0,0.00034857,2]
[341025776,1730281833056,-150.0,0.00034858,2]
[341025777,1730281833066,-150.0,0.00034858,2]
[341025778,1730281833075,-150.0,0.00034862,2]
[341025779,1730281833085,-150.0,0.00034863,2]
[341025780,1730281833094,-150.0,0.00034864,2]
[341025781,1730281833105,-500.0,0.00034873,2]
[341025782,1730281833114,-500.0,0.00034873,5]
[341025783,1730281833123,-500.0,0.00034873,5]
[341025784,1730281833133,-150.0,0.00034884,2]
[341025785,1730281833142,-150.0,0.00034884,2]
[341025786,1730281833151,-4.26249995,0.00034886,2]
[341025787,1730281833163,-145.73750005,0.00034886,2]
[341025788,1730281833173,-150.0,0.00034887,2]
[341025789,1730281833182,-800.67174008,0.00034896,5]
[341025790,1730281833244,-397.24825992,0.00034896,5]
[341025791,1730281833254,-503.89611952,0.00034896,5]
[341025792,1730281833265,-115.88959959,0.00034896,2]
[341025796,1730281838160,-1148.01,0.00034796,5]
[341025797,1730281838169,-384.11040041,0.00034896,2]
[341025798,1730281838179,-500.0,0.00034896,5]
[341025799,1730281838189,-510.38,0.00034896,5]
[341025800,1730281838198,-500.0,0.00034896,5]
[341025801,1730281838207,-199.33959959,0.00034896,2]
[341025802,1730281838223,-297.86180081,0.00034896,2]
[341025803,1730281838232,-500.0,0.00034896,5]
[341025804,1730281838242,-606.69,0.00034896,5]
[341025805,1730281838251,-500.0,0.00034896,5]
[341025806,1730281838261,-500.0,0.00034896,5]
[341025807,1730281838271,-500.0,0.00034896,5]
[341025808,1730281838283,-500.0,0.00034896,5]
[341025809,1730281838293,-500.0,0.00034896,5]
[341025810,1730281838303,-500.0,0.00034896,5]
[341025811,1730281838313,-517.51260459,0.00034896,5]
[341025812,1730281838322,-500.0,0.00034896,5]
[341025813,1730281838332,-501.15,0.00034896,5]
[341025814,1730281838341,-893.33,0.00034896,5]
[341025815,1730281838351,-500.0,0.00034896,5]
[341025816,1730281838360,-500.0,0.00034896,5]
[341025817,1730281838370,-508.65817885,0.00034896,5]
[341025818,1730281838379,-500.0,0.00034896,5]
[341025819,1730281838388,-665.41,0.00034896,5]
[341025820,1730281838397,-500.0,0.00034896,5]
[341025821,1730281838407,-500.0,0.00034896,5]
[341025822,1730281838416,-503.91017911,0.00034896,5]
[341025823,1730281838425,-500.0,0.00034896,5]
[341025824,1730281838435,-500.0,0.00034896,5]
[341025825,1730281838444,-500.0,0.00034896,5]
[341025827,1730281838453,-500.0,0.00034896,5]
[341025829,1730281838463,-500.0,0.00034896,5]
[341025830,1730281838472,-500.0,0.00034896,5]
[341025831,1730281838482,-500.0,0.00034896,5]
[341025832,1730281838491,-500.0,0.00034896,5]
[341025833,1730281838500,-896.36,0.00034896,5]
[341025834,1730281838509,-530.26027072,0.00034896,5]
[341025835,1730281838519,-408.77522647,0.00034896,5]
[341025836,1730281838529,-500.0,0.00034896,5]
[341025837,1730281838538,-500.0,0.00034896,5]
[341025838,1730281838548,-657.59,0.00034896,5]
[341025839,1730281838557,-500.0,0.00034896,5]
[341025840,1730281838567,-558.69,0.00034896,5]
[341025841,1730281838576,-500.0,0.00034896,5]
[341025842,1730281838585,-500.0,0.00034896,5]
[341025843,1730281838595,-500.0,0.00034896,5]
[341025844,1730281838604,-500.0,0.00034896,5]
[341025845,1730281838616,-500.0,0.00034896,5]
[341025846,1730281838626,-500.0,0.00034896,5]
[341025847,1730281838636,-500.0,0.00034896,5]
[341025848,1730281838645,-605.45,0.00034896,5]
[341025849,1730281838654,-529.16177135,0.00034896,5]
[341025850,1730281838665,-534.87675312,0.00034896,5]
[341025851,1730281838674,-500.0,0.00034896,5]
[341025852,1730281838683,-500.0,0.00034896,5]
[341025853,1730281838695,-797.87,0.00034896,5]
[341025854,1730281838704,-500.0,0.00034896,5]
[341025855,1730281838714,-500.0,0.00034896,5]
[341025856,1730281838723,-500.0,0.00034896,5]
[341025857,1730281838733,-500.0,0.00034896,5]
[341025858,1730281838746,-500.0,0.00034896,5]
[341025859,1730281838756,-500.0,0.00034896,5]
[341025860,1730281838766,-164.25722904,0.00034896,5]
[341025861,1730281838775,-500.0,0.00034896,5]
[341025862,1730281838786,-500.0,0.00034896,5]
[341025863,1730281838795,-500.0,0.00034896,5]
[341025864,1730281838804,-500.0,0.00034896,5]
[341025865,1730281838814,-500.0,0.00034896,5]
[341025866,1730281838823,-2038.38,0.00034896,5]
[341025867,1730281838832,-509.77001267,0.00034896,5]
[341025868,1730281838841,-500.0,0.00034896,5]
[341025869,1730281838851,-522.56783108,0.00034896,5]
[341025870,1730281838860,-531.33143133,0.00034896,5]
[341025871,1730281838869,-549.22935571,0.00034896,5]
[341025872,1730281838878,-154.530973,0.00034896,5]
[341025873,1730281838887,-906.17,0.00034896,5]
[341025874,1730281838896,-1071.27,0.00034896,5]
[341025875,1730281838905,-500.0,0.00034896,5]
[341025876,1730281838915,-541.25318279,0.00034896,5]
[341025877,1730281838925,-500.0,0.00034896,5]
[341025878,1730281838934,-1079.54,0.00034896,5]
[341025879,1730281838943,-606.77318164,0.00034896,5]
[341025880,1730281838953,-421.56370316,0.00034896,5]
[341025881,1730281838962,-1249.67,0.00034896,5]
[341025882,1730281838971,-1134.67,0.00034896,5]
[341025883,1730281838981,-500.0,0.00034896,5]
[341025884,1730281838990,-500.0,0.00034896,5]
[341025885,1730281839000,-500.0,0.00034896,5]
[341025886,1730281839009,-652.3,0.00034896,5]
[341025887,1730281839019,-500.0,0.00034896,5]
[341025888,1730281839029,-500.0,0.00034896,5]